bitfinex-derivatives/quotes_ETHF0:USTF0_20240920
["timestamp","ask_amount","ask_price","bid_price","bid_amount"]
[1726856774759,3.2078,2539.3,2538.9,0.441]
[1726856774760,0.39383,2539.1,2538.9,0.441]
[1726856774959,0.39383,2539.1,2539.0,0.39383]
[1726856775256,0.39382,2539.1,2539.0,0.39383]
[1726856775848,0.39381,2539.2,2539.1,0.39381]
[1726856776055,0.39383,2539.1,2539.0,0.39383]
[1726856777165,1.93388796,2539.1,2539.0,0.39383]
[1726856780061,0.39383,2539.0,2538.9,0.83484]
[1726856780265,2.84688796,2539.0,2538.9,0.39384]
[1726856780654,0.39385,2538.9,2538.8,8.44515]
[1726856781456,2.45305796,2539.0,2538.9,0.39385]
[1726856781653,1.54005796,2539.0,2538.9,2.36309]
[1726856781852,2.05357211,2539.4,2539.1,0.98455]
[1726856782067,2.05357211,2539.5,2539.4,0.39377]
[1726856782261,3.4848112,2539.6,2539.5,0.39375]
[1726856783168,3.0910712,2539.6,2539.5,0.39375]
[1726856783467,7.67427973,2539.7,2539.6,0.39374]
[1726856783468,7.67426973,2539.7,2539.6,0.39374]
[1726856783863,4.06802,2539.7,2539.6,0.39374]
[1726856784366,7.67426973,2539.7,2539.6,0.39374]
[1726856785468,7.67426973,2539.7,2539.4,3.967]
[1726856785469,14.29814973,2539.7,2539.4,3.967]
[1726856785659,3.48805696,2539.5,2539.4,3.967]
[1726856786859,3.48805696,2539.5,2539.3,3.2078]
[1726856787065,3.48805696,2539.5,2539.4,0.39377]
[1726856787366,3.09430696,2539.5,2539.3,3.2078]
[1726856787567,0.39378,2539.3,2539.2,4.81989]
[1726856787864,3.48808696,2539.4,2539.3,0.39378]
[1726856788564,3.09430696,2539.4,2539.3,0.39378]
[1726856789375,2.97228645,2539.4,2539.3,0.39378]
[1726856789578,0.3938,2539.3,2539.2,0.39379]
[1726856789869,0.39381,2539.2,2539.1,0.39381]
[1726856790171,0.80121,2539.2,2539.1,0.39381]
[1726856790765,3.37981103,2539.2,2539.1,0.39381]
[1726856791762,0.39383,2539.1,2539.0,0.39383]
[1726856791963,3.37981103,2539.2,2539.1,0.39382]
[1726856792961,2.98600103,2539.2,2539.1,0.39382]
[1726856793166,2.06250463,2539.2,2539.1,0.98455]
[1726856793371,2.06250463,2539.2,2539.1,1.37837]
[1726856794169,2.06250463,2539.2,2539.1,5.31677]
[1726856794477,2.06250463,2539.3,2539.2,1.37831]
[1726856794771,2.06250463,2539.4,2539.3,0.39378]
[1726856795372,2.06250463,2539.4,2539.3,1.37825]
[1726856796169,2.99400103,2539.5,2539.4,0.39377]
[1726856796880,3.38775103,2539.5,2539.4,0.39377]
[1726856797169,0.80915,2539.5,2539.4,0.39377]
[1726856797373,4.353,2539.5,2539.0,3.966]
[1726856797574,3.48740049,2539.3,2539.2,0.3938]
[1726856797768,0.39379,2539.3,2539.2,0.3938]
[1726856797971,3.09361049,2539.3,2539.0,3.966]
[1726856798174,0.39382,2539.1,2539.0,4.35982]
[1726856798476,3.48743049,2539.2,2539.1,0.39382]
[1726856799174,0.39382,2539.1,2539.0,4.35982]
[1726856799377,0.39382,2539.1,2538.9,3.2078]
[1726856799378,3.09361049,2539.1,2538.9,3.2078]
[1726856799677,0.39386,2538.9,2538.8,0.39386]
[1726856801881,3.09361049,2539.0,2538.9,0.39385]
[1726856802071,3.09361049,2539.0,2538.7,3.08]
[1726856802072,3.09361049,2539.1,2539.0,0.39383]
[1726856803181,0.8299,2539.2,2539.1,0.39382]
[1726856803677,3.92476571,2539.2,2539.1,0.39382]
[1726856804071,0.39382,2539.1,2539.0,0.39382]
[1726856804278,0.39382,2539.1,2538.9,3.2078]
[1726856804279,4.31857571,2539.2,2538.9,7.1668]
[1726856804574,2.06347133,2539.1,2539.0,0.39383]
[1726856805175,3.80304917,2539.2,2539.1,0.39382]
[1726856805777,8.33214917,2539.2,2538.6,5.221572]
[1726856805977,2.06376697,2538.9,2538.8,0.39386]
[1726856808181,0.39384,2539.0,2538.9,0.39385]
[1726856808686,2.97315917,2539.1,2539.0,0.39383]
[1726856809077,0.39383,2539.0,2538.9,0.39383]
[1726856809275,2.97315917,2539.1,2539.0,0.39383]
[1726856809481,2.57933917,2539.1,2539.0,0.39383]
[1726856809682,2.46471787,2539.1,2539.0,0.39383]
[1726856810483,0.4004,2539.1,2539.0,0.39383]
[1726856812187,0.79422,2539.1,2539.0,0.39383]
[1726856812589,0.39383,2539.0,2538.9,7.56064]
[1726856812783,2.45762764,2539.0,2538.9,7.56064]
[1726856812983,0.39383,2539.0,2538.9,4.35284]
[1726856815787,2.45779206,2539.0,2538.9,4.35284]
[1726856815983,2.06396206,2539.0,2538.9,9.27586]
[1726856816284,2.06396206,2539.2,2539.1,0.39382]
[1726856816491,0.3938,2539.2,2539.1,0.80762]
[1726856816987,2.57933917,2539.2,2539.1,0.80762]
[1726856817181,2.57933917,2539.2,2539.1,0.39382]
[1726856818085,3.39962917,2539.3,2539.2,0.3938]
[1726856818289,0.82029,2539.3,2539.2,0.3938]
[1726856819590,4.03917143,2539.3,2539.2,0.3938]
[1726856819792,0.39378,2539.3,2539.2,0.3938]
[1726856820890,4.44076375,2539.4,2539.3,0.39378]
[1726856821192,4.04698375,2539.4,2539.3,1.37825]
[1726856821598,0.4344,2539.4,2539.3,1.37825]
[1726856821892,4.04268375,2539.6,2539.5,0.39375]
[1726856822083,4.44938375,2539.6,2539.5,0.39375]
[1726856822491,3.09577167,2539.6,2539.5,16.25913]
[1726856822787,3.61258375,2539.7,2539.6,0.39374]
[1726856822788,3.09577167,2539.7,2539.6,0.39374]
[1726856823387,4.00630375,2539.8,2539.7,0.39372]
[1726856824688,3.61258375,2539.8,2539.7,0.39372]
[1726856825193,3.61258375,2539.9,2539.8,0.39371]
[1726856825990,4.00627375,2539.9,2539.8,0.39371]
[1726856826196,0.39369,2539.9,2539.8,0.39371]
[1726856826499,4.00627375,2539.9,2539.8,0.39371]
[1726856826693,4.00626375,2540.0,2539.9,0.39369]
[1726856826890,0.39368,2540.0,2539.9,0.39369]
[1726856827092,4.54982827,2540.1,2540.0,0.39368]
[1726856827294,3.60945062,2540.1,2540.0,0.39368]
[1726856827486,3.48691216,2540.3,2540.0,3.9368]
[1726856827694,0.39363,2540.3,2540.2,0.39365]
[1726856827992,3.09327216,2540.4,2539.9,0.4109]
[1726856828203,3.91547216,2540.5,2540.3,0.39363]
[1726856828392,3.91548216,2540.5,2540.4,0.39361]
[1726856828892,3.52187216,2540.5,2540.4,0.39361]
[1726856829288,5.66944554,2540.6,2540.5,0.3936]
[1726856829491,2.96974338,2540.7,2540.2,4.0641]
[1726856829788,2.05950675,2540.5,2540.4,0.39361]
[1726856830589,2.05950675,2540.6,2540.5,0.3936]
[1726856831599,2.05950675,2540.7,2540.6,0.39358]
[1726856833700,2.45306675,2540.8,2540.6,0.39358]
[1726856834188,2.45306675,2540.8,2540.6,0.39357]
[1726856834189,0.39356,2540.8,2540.6,0.39357]
[1726856834395,2.05578366,2540.8,2540.7,0.39357]
[1726856834602,3.60945062,2540.8,2540.7,0.39357]
[1726856835595,3.08156165,2540.8,2540.7,3.936]
[1726856835787,3.08156165,2540.8,2540.7,5.3135]
[1726856835993,3.08156165,2540.8,2540.7,4.32957]
[1726856836192,3.08156165,2540.8,2540.7,4.73827]
[1726856837490,3.08156165,2540.8,2540.7,0.39357]
[1726856838000,3.08156165,2540.9,2540.8,0.39355]
[1726856838308,3.08156165,2541.2,2541.1,1.37728]
[1726856838494,3.08156165,2541.3,2541.2,0.39349]
[1726856838693,6.81725062,2541.4,2541.3,0.39347]
[1726856838694,3.08156165,2541.4,2541.3,0.39347]
[1726856838894,6.68945062,2541.5,2541.0,0.9838]
[1726856839204,6.68945062,2541.5,2540.9,1.2894]
[1726856839205,3.07768391,2541.3,2540.9,1.2894]
[1726856839403,3.07768391,2541.3,2540.4,1.96807]
[1726856839404,7.14138391,2541.3,2540.5,3.2078]
[1726856839699,3.47356,2540.8,2540.6,3.936]
[1726856839897,3.08,2540.8,2540.7,3.94257]
[1726856840296,0.39354,2540.9,2540.7,4.34256]
[1726856840502,0.39354,2540.9,2540.7,0.39356]
[1726856840807,3.47353,2541.0,2540.7,4.34256]
[1726856841105,3.08,2541.0,2540.7,3.949]
[1726856841296,3.47353,2541.0,2540.7,4.34256]
[1726856841496,3.08,2541.0,2540.7,4.34256]
[1726856841702,0.39354,2540.9,2540.7,4.34256]
[1726856842302,0.39354,2540.9,2540.7,3.949]
[1726856842502,1.93104875,2540.9,2540.7,3.949]
[1726856842701,1.93104875,2540.9,2540.7,4.34256]
[1726856842909,0.4307,2540.8,2540.7,4.34256]
[1726856845611,1.53750875,2540.9,2540.8,0.39354]
[1726856846096,1.53750875,2541.0,2540.9,0.39354]
[1726856846296,1.53691433,2541.0,2540.9,0.39354]
[1726856846791,1.53691433,2541.0,2540.8,0.39354]
[1726856847211,1.53691433,2541.0,2540.9,4.32954]
[1726856847396,1.53691433,2541.0,2540.9,0.39354]
[1726856847601,1.53691433,2541.0,2540.9,4.32874]
[1726856848806,1.53691433,2541.0,2540.9,0.39354]
[1726856849595,0.39352,2541.0,2540.7,0.39356]
[1726856849804,5.01043433,2541.1,2540.8,4.34255]
[1726856850002,4.61691433,2541.1,2540.9,0.4066]
[1726856850208,5.01042433,2541.1,2541.0,0.4335]
[1726856850398,1.93042433,2541.1,2541.0,0.4335]
[1726856851502,0.39352,2541.0,2540.9,0.80014]
[1726856851709,0.39352,2541.0,2540.9,0.39354]
[1726856852505,0.39352,2541.0,2540.8,3.949]
[1726856852700,0.39354,2540.9,2540.6,0.8587]
[1726856852901,0.39353,2541.0,2540.8,0.39355]
[1726856853100,1.93044433,2541.0,2540.8,4.34254]
[1726856853408,0.39353,2541.0,2540.9,0.39354]
[1726856853604,0.39354,2540.9,2540.8,4.34254]
[1726856853912,0.39353,2541.0,2540.8,4.34254]
[1726856854305,0.39353,2541.0,2540.9,0.39354]
[1726856854506,1.93044433,2541.0,2540.9,0.39354]
[1726856856008,1.93044433,2541.0,2540.9,4.32874]
[1726856856203,0.39352,2541.0,2540.9,4.32874]
[1726856856409,2.33542433,2541.1,2540.9,4.32874]
[1726856856612,1.93043433,2541.0,2540.8,4.34154]
[1726856856906,1.0251154,2540.9,2540.8,4.34155]
[1726856857310,1.0251154,2540.9,2540.8,8.27755]
[1726856857499,1.53691433,2540.9,2540.8,8.27755]
[1726856857704,3.47120391,2541.0,2540.9,0.39354]
[1726856857915,3.47120391,2541.0,2540.9,4.34154]
[1726856858411,3.07768391,2541.0,2540.9,4.34154]
[1726856858816,3.47120391,2541.0,2540.9,3.948]
[1726856859136,4.01445062,2541.1,2540.9,3.948]
[1726856859416,4.01445062,2541.1,2540.9,4.34153]
[1726856859417,3.07770428,2541.0,2540.9,4.34153]
[1726856859715,4.40796062,2541.1,2540.9,4.34153]
[1726856860318,3.07777672,2541.0,2540.9,4.34153]
[1726856860616,4.40796062,2541.1,2540.9,4.34153]
[1726856860810,4.01445062,2541.1,2540.9,4.34153]
[1726856861116,3.07857389,2541.1,2541.0,4.32872]
[1726856861414,3.2078,2541.3,2541.2,0.39349]
[1726856861613,3.07857389,2541.4,2541.0,7.8467]
[1726856861614,3.07857389,2541.4,2541.1,4.3637]
[1726856862017,0.4235,2541.3,2541.0,0.4128]
[1726856862218,3.08,2541.2,2540.7,1.2303]
[1726856862424,6.15857389,2541.0,2540.7,0.416]
[1726856862612,3.07857389,2540.9,2540.7,4.356]
[1726856862812,3.07857389,2540.8,2540.7,0.416]
[1726856863020,3.89901389,2540.9,2540.7,3.94]
[1726856863322,6.55213389,2540.8,2540.5,0.416]
[1726856863616,3.07857389,2540.7,2540.6,3.94]
[1726856864015,3.07857389,2540.7,2540.5,0.80959]
[1726856864322,3.07857389,2540.7,2540.5,4.74959]
[1726856864514,3.07857389,2540.6,2540.5,10.356]
[1726856864711,3.60945062,2540.8,2540.5,11.4998]
[1726856864712,2.56990549,2540.8,2540.5,11.4998]
[1726856865015,3.6347,2541.1,2540.8,0.39355]
[1726856865016,2.56990549,2540.9,2540.8,0.39355]
[1726856865412,3.6347,2541.1,2540.8,4.32955]
[1726856865608,6.71327389,2541.1,2540.9,0.4183]
[1726856866020,6.71327389,2541.1,2540.8,0.39354]
[1726856867024,3.50547389,2541.1,2540.8,0.39354]
[1726856867322,3.50547389,2541.1,2540.9,0.39354]
[1726856867520,3.07857389,2541.2,2541.1,0.39351]
[1726856867715,3.60945062,2541.4,2541.1,0.39351]
[1726856867716,3.07857389,2541.4,2541.1,3.94]
[1726856868015,3.47203389,2541.4,2541.3,3.08]
[1726856868313,0.39349,2541.2,2541.1,3.94]
[1726856868517,3.47999691,2541.2,2540.9,0.39353]
[1726856868714,4.33481691,2541.1,2540.9,3.94]
[1726856868914,0.8548,2541.1,2540.9,3.94]
[1726856869116,0.39354,2540.9,2540.8,3.94]
[1726856869316,0.39354,2540.9,2540.7,3.94]
[1726856869538,3.08650691,2540.9,2540.6,7.1478]
[1726856869712,3.48006691,2540.8,2540.6,4.33357]
[1726856870021,3.08650691,2540.8,2540.7,0.39357]
[1726856870313,3.08650691,2540.8,2540.7,4.32957]
[1726856870514,3.60945062,2541.0,2540.8,0.39355]
[1726856870515,3.08650691,2540.9,2540.8,0.39355]
[1726856870720,3.08650691,2540.9,2540.8,1.81355]
[1726856871215,3.08650691,2540.9,2540.8,5.74955]
[1726856871616,3.09144871,2540.9,2540.8,12.33989]
[1726856871915,3.09144871,2540.9,2540.8,12.73344]
[1726856872418,3.60945062,2541.0,2540.9,0.39354]
[1726856872615,3.60945062,2541.0,2540.9,4.32874]
[1726856872813,7.75512827,2541.1,2541.0,0.39352]
[1726856872814,10.3326473,2541.1,2541.0,0.39352]
[1726856873011,6.21121397,2541.1,2541.0,0.39352]
[1726856873516,3.6337,2541.1,2541.0,0.39352]
[1726856873717,4.02721,2541.1,2541.0,0.39352]
[1726856874319,3.6337,2541.1,2540.8,5.36]
[1726856874514,2.57891242,2540.9,2540.8,4.33354]
[1726856874824,2.57891242,2540.9,2540.8,8.96134]
[1726856875009,2.57891242,2540.9,2540.8,12.89734]
[1726856875211,2.57891242,2541.0,2540.9,0.39354]
[1726856875422,0.81941,2541.1,2541.0,0.39352]
[1726856876214,0.4259,2541.1,2541.0,0.39352]
[1726856877517,0.81941,2541.1,2541.0,0.39352]
[1726856877718,0.4259,2541.1,2541.0,0.39352]
[1726856878323,0.39353,2541.0,2540.9,0.39353]
[1726856878626,0.81941,2541.1,2541.0,0.39352]
[1726856880314,0.4259,2541.1,2541.0,0.39352]
[1726856880515,0.4259,2541.1,2541.0,3.60132]
[1726856880822,0.4259,2541.1,2541.0,5.02132]
[1726856881015,0.81941,2541.1,2541.0,5.02132]
[1726856881331,0.39351,2541.1,2541.0,8.95651]
[1726856881630,3.92582284,2541.2,2541.1,0.39351]
[1726856881812,0.39351,2541.1,2541.0,1.81351]
[1726856882014,0.39351,2541.1,2541.0,0.39351]
[1726856882427,3.92582284,2541.2,2541.1,0.39351]
[1726856882627,0.39351,2541.1,2541.0,0.39351]
[1726856883724,0.39351,2541.1,2540.9,7.1478]
[1726856883725,0.39352,2541.0,2540.9,4.33353]
[1726856883924,0.39352,2541.0,2540.9,0.39353]
[1726856884125,5.34494284,2541.0,2540.9,0.39353]
[1726856884517,3.92494284,2541.0,2540.9,0.39353]
[1726856884725,5.34494284,2541.0,2540.9,0.39353]
[1726856885817,3.92494284,2541.0,2540.9,0.39353]
[1726856886013,0.83192,2541.0,2540.9,0.39353]
[1726856886613,0.39354,2540.9,2540.8,4.33354]
[1726856886818,3.48656284,2540.9,2540.8,4.33354]
[1726856887727,0.39357,2540.8,2540.7,0.39355]
[1726856887924,3.91168284,2540.8,2540.7,0.39357]
[1726856889014,3.91168284,2540.8,2540.6,3.94]
[1726856889015,0.39358,2540.7,2540.6,0.39357]
[1726856889215,0.39358,2540.7,2540.5,4.33359]
[1726856889216,3.49083991,2540.7,2540.5,4.33359]
[1726856889417,0.39358,2540.7,2540.6,0.39358]
[1726856889628,3.09706118,2540.7,2540.6,0.39358]
[1726856889828,0.39357,2540.7,2540.6,0.39358]
[1726856890031,3.49063902,2540.7,2540.6,0.39358]
[1726856890627,3.49049218,2540.7,2540.6,0.39358]
[1726856891220,0.39359,2540.6,2540.5,0.39359]
[1726856891421,3.09695664,2540.7,2540.5,0.3936]
[1726856891623,0.3936,2540.5,2540.4,4.33061]
[1726856892222,3.49055664,2540.5,2540.4,3.937]
[1726856892830,3.91055664,2540.5,2540.4,3.937]
[1726856893134,3.09695664,2540.5,2540.4,8.26661]
[1726856893324,3.09695664,2540.6,2540.5,0.3936]
[1726856893720,3.49053664,2540.6,2540.5,0.3936]
[1726856894229,0.3936,2540.5,2540.4,0.3936]
[1726856894438,0.42,2540.5,2540.4,0.3936]
[1726856894625,3.51695664,2540.5,2540.4,0.3936]
[1726856894827,0.42,2540.5,2540.4,0.3936]
[1726856896342,0.42,2540.5,2540.3,0.81942]
[1726856896343,0.39361,2540.4,2540.3,0.81942]
[1726856896523,3.4738,2540.4,2540.0,0.4267]
[1726856896726,2.5794584,2540.1,2540.0,0.82038]
[1726856897023,0.39365,2540.2,2540.1,0.39366]
[1726856897228,0.39365,2540.2,2540.0,0.4267]
[1726856897229,3.50075664,2540.4,2540.3,0.39363]
[1726856897434,0.4038,2540.4,2540.3,0.39363]
[1726856897631,2.5785086,2540.4,2540.3,5.31451]
[1726856897934,2.5785086,2540.5,2540.4,0.39361]
[1726856898741,2.5785086,2540.5,2540.4,7.39961]
[1726856899056,2.06225554,2540.7,2540.6,1.96794]
[1726856899236,0.8453,2541.3,2540.7,8.97386]
[1726856899435,0.8453,2541.3,2541.2,0.39349]
[1726856902030,6.74075664,2541.6,2541.5,0.39344]
[1726856902427,7.13418664,2541.6,2541.5,0.39344]
[1726856902629,6.74075664,2541.6,2541.5,0.39344]
[1726856902842,3.2078,2541.6,2541.5,12.29508]
[1726856903144,3.2078,2541.6,2541.5,10.76124]
[1726856903335,3.2078,2541.6,2541.5,4.76124]
[1726856903536,3.2078,2541.6,2541.0,6.2778]
[1726856903736,0.8118,2541.5,2541.3,3.937]
[1726856903940,0.8118,2541.5,2540.7,6.7195]
[1726856903941,4.3194,2541.5,2540.7,6.7195]
[1726856904146,3.2078,2541.3,2540.8,0.4334]
[1726856904345,0.39351,2541.1,2540.9,3.937]
[1726856904543,0.4384,2541.0,2540.9,3.937]
[1726856904933,0.4384,2541.0,2540.9,4.33054]
[1726856905638,0.4376,2541.5,2540.9,3.9352]
[1726856905945,0.8664,2541.4,2541.2,0.39349]
[1726856906137,0.8664,2541.4,2541.0,7.007]
[1726856906337,1.25986,2541.4,2541.2,0.39348]
[1726856908244,0.8664,2541.4,2541.0,10.2148]
[1726856908441,1.25986,2541.4,2541.2,0.39348]
[1726856910243,1.25986,2541.4,2541.1,0.4167]
[1726856910244,0.39347,2541.3,2541.1,0.8102]
[1726856910436,0.8664,2541.4,2541.2,0.39349]
[1726856910633,1.25987,2541.4,2541.2,0.39349]
[1726856911846,0.39347,2541.3,2541.2,0.39349]
[1726856912031,0.39349,2541.3,2541.1,0.39349]
[1726856912230,0.39349,2541.2,2541.1,0.39349]
[1726856912439,0.3935,2541.2,2541.1,0.39351]
[1726856912735,3.2078,2541.3,2541.0,3.936]
[1726856913047,0.39354,2540.9,2540.7,3.2078]
[1726856913242,0.8248,2540.8,2540.7,3.60137]
[1726856913549,1.2418,2540.8,2540.7,0.39357]
[1726856913734,0.39358,2540.7,2540.6,0.39358]
[1726856914237,1.2418,2540.8,2540.4,3.936]
[1726856914437,0.3936,2540.6,2540.4,3.936]
[1726856914647,0.3936,2540.6,2540.4,4.32961]
[1726856914940,0.3936,2540.6,2540.5,0.3936]
[1726856915536,0.39358,2540.6,2540.5,0.3936]
[1726856915943,0.39358,2540.7,2540.5,0.3936]
[1726856916342,0.39358,2540.6,2540.4,4.3296]
[1726856916538,4.33875664,2540.8,2540.3,0.39362]
[1726856916842,0.39359,2540.6,2540.4,4.3306]
[1726856917437,0.3936,2540.5,2540.4,4.3306]
[1726856917742,0.3936,2540.5,2540.2,0.4061]
[1726856917743,3.2078,2540.7,2540.2,0.4061]
[1726856918044,3.2078,2540.7,2540.0,0.39367]
[1726856918045,0.39365,2540.2,2540.0,0.39367]
[1726856918345,1.2466,2540.1,2540.0,0.39368]
[1726856920142,1.2466,2540.1,2539.8,7.1448]
[1726856920340,1.64027,2540.1,2539.9,0.39369]
[1726856920940,0.39368,2540.0,2539.8,7.5385]
[1726856922149,0.39368,2540.0,2539.8,7.1398]
[1726856922449,2.96903559,2540.3,2539.9,7.0068]
[1726856922744,6.62700559,2540.4,2540.1,0.39366]
[1726856922946,0.39365,2540.2,2540.0,0.39366]
[1726856923146,0.39365,2540.2,2540.1,0.39366]
[1726856923340,0.39365,2540.2,2540.1,4.32566]
[1726856924041,0.39365,2540.2,2540.0,0.39367]
[1726856924241,6.62700559,2540.4,2540.2,0.39364]
[1726856924440,4.0516,2540.4,2540.2,0.39364]
[1726856924636,4.0516,2540.4,2540.3,0.39363]
[1726856926751,2.57540559,2540.6,2540.5,0.3936]
[1726856926752,0.39359,2540.6,2540.5,0.3936]
[1726856926958,0.82679,2540.6,2540.5,0.3936]
[1726856927145,0.39361,2540.5,2540.4,0.3936]
[1726856929246,0.82679,2540.6,2540.5,0.3936]
[1726856930348,2.88423919,2540.6,2540.5,0.3936]
[1726856930851,2.88423919,2540.6,2540.3,3.07]
[1726856930852,0.39361,2540.5,2540.4,0.39361]
[1726856939862,2.45105919,2540.5,2540.4,0.39361]
[1726856940459,3.43505919,2540.5,2540.4,0.39361]
[1726856940652,0.39361,2540.4,2540.3,4.32562]
[1726856940854,0.79981,2540.4,2540.3,4.32562]
[1726856941055,0.79981,2540.4,2540.3,0.39362]
[1726856941454,0.4062,2540.4,2540.3,0.39362]
[1726856941956,0.79981,2540.4,2540.3,0.39362]
[1726856942357,0.79981,2540.4,2540.3,3.46362]
[1726856943348,0.4062,2540.4,2540.3,3.46362]
[1726856943753,2.49064919,2540.6,2540.5,0.3936]
[1726856943953,2.49064919,2540.6,2540.5,3.07]
[1726856943954,2.05722122,2540.6,2540.5,3.07]
[1726856944160,2.05722122,2540.7,2540.6,0.39358]
[1726856944457,2.05722122,2540.8,2540.7,0.39357]
[1726856944658,3.31106122,2540.9,2540.8,0.39355]
[1726856944853,1.25384,2540.9,2540.8,0.39355]
[1726856945457,0.8603,2540.9,2540.8,0.39355]
[1726856946058,1.25384,2540.9,2540.8,0.39355]
[1726856946257,2.57540559,2541.0,2540.8,3.07]
[1726856946460,2.05736415,2541.1,2540.8,7.002]
[1726856946762,2.92336415,2541.2,2541.1,0.39351]
[1726856946961,2.05736415,2541.2,2541.1,0.39351]
[1726856947162,2.05736415,2541.3,2541.1,0.3935]
[1726856947357,2.05736415,2541.2,2541.1,0.3935]
[1726856948361,2.05736415,2541.2,2540.9,4.0272]
[1726856948563,2.05736415,2541.2,2540.9,4.42074]
[1726856948564,1.02871373,2541.0,2540.9,4.42074]
[1726856949371,2.05736415,2541.2,2541.1,0.39351]
[1726856949565,2.45085415,2541.2,2541.0,0.39351]
[1726856949869,2.05736415,2541.1,2541.0,0.39351]
[1726856950064,0.39349,2541.2,2541.0,0.39351]
[1726856950065,2.45085415,2541.2,2541.0,0.39351]
[1726856950369,2.45085415,2541.2,2541.1,0.39351]
[1726856950567,2.45085415,2541.2,2541.0,0.39351]
[1726856950769,0.39352,2541.1,2540.9,0.39353]
[1726856950968,0.4249,2541.0,2540.9,0.39353]
[1726856951662,0.4315,2541.1,2541.0,0.39352]
[1726856954265,0.82501,2541.1,2541.0,0.39352]
[1726856954466,2.88237415,2541.1,2541.0,0.39352]
[1726856954670,0.82501,2541.1,2541.0,0.39352]
[1726856955172,0.82501,2541.1,2540.9,3.926]
[1726856955468,2.88237415,2541.1,2540.9,4.31952]
[1726856955659,2.88237415,2541.1,2541.0,0.39352]
[1726856956768,0.39352,2541.0,2540.9,4.31953]
[1726856958373,0.39357,2540.8,2540.7,0.39356]
[1726856958568,0.39357,2540.7,2540.6,4.31958]
[1726856958767,3.32823415,2540.7,2540.6,4.31958]
[1726856959076,0.39361,2540.5,2540.4,0.39361]
[1726856959268,0.39361,2540.5,2540.3,4.31962]
[1726856959269,0.39361,2540.4,2540.3,4.31962]
[1726856959577,0.4475,2540.4,2540.3,4.31962]
[1726856959973,2.38552908,2540.4,2540.3,4.31962]
[1726856960175,1.99191908,2540.4,2540.3,4.31962]
[1726856960371,1.99196205,2540.4,2540.3,4.31962]
[1726856961374,1.99196205,2540.4,2540.3,0.39362]
[1726856962975,0.4475,2540.4,2540.3,0.39362]
[1726856964675,2.05922105,2540.5,2540.4,0.39361]
[1726856965374,2.45282105,2540.5,2540.4,0.39361]
[1726856965568,2.05922105,2540.5,2540.4,0.39361]
[1726856965774,2.45282105,2540.5,2540.4,0.39361]
[1726856966571,2.05922105,2540.5,2540.4,0.39361]
[1726856967178,2.45282105,2540.5,2540.4,0.39361]
[1726856967570,2.45363013,2540.5,2540.4,0.39361]
[1726856968367,0.3936,2540.5,2540.4,0.39361]
[1726856968568,0.3936,2540.5,2540.4,0.3936]
[1726856968878,2.06032163,2540.5,2540.4,0.3936]
[1726856972480,2.06032163,2540.5,2540.4,3.4636]
[1726856972786,2.06032163,2540.6,2540.5,1.3776]
[1726856973279,2.06032163,2540.6,2540.5,0.3936]
[1726856974279,2.06032163,2540.7,2540.6,0.39358]
[1726856976786,2.45389163,2540.7,2540.6,0.39358]
[1726856976988,2.45454687,2540.7,2540.6,0.39358]
[1726856977283,2.57540559,2540.7,2540.6,0.39358]
[1726856977681,2.57540559,2540.7,2540.6,4.31958]
[1726856977981,2.96897559,2540.7,2540.6,4.31958]
[1726856978584,2.57540559,2540.7,2540.6,4.31958]
[1726856979089,2.96897559,2540.7,2540.6,4.31958]
[1726856979984,2.57540559,2540.7,2540.6,4.31958]
[1726856982889,2.57540559,2540.7,2540.6,7.52738]
[1726856983283,2.57540559,2540.7,2540.6,4.31958]
[1726856984987,2.57540559,2540.7,2540.6,7.52738]
[1726856985191,2.06139256,2540.7,2540.6,12.44735]
[1726856985377,2.57540559,2540.8,2540.6,12.88315]
[1726856985378,2.06139256,2540.8,2540.6,12.88315]
[1726856985579,2.06139256,2540.8,2540.7,0.39357]
[1726856985780,2.06139256,2540.8,2540.7,9.36743]
[1726856985991,1.54593317,2540.8,2540.7,15.36743]
[1726856986194,1.54593317,2540.9,2540.8,1.37744]
[1726856986382,0.85203317,2540.9,2540.8,9.36733]
[1726856986590,2.57540559,2541.3,2541.2,2.36095]
[1726856986789,2.57540559,2541.5,2541.4,0.39346]
[1726856986984,2.57540559,2541.5,2541.4,3.46346]
[1726856988984,2.57540559,2541.5,2541.4,0.39346]
[1726856989479,0.39346,2541.4,2541.3,3.92]
[1726856989889,0.39346,2541.4,2541.3,4.31347]
[1726856990291,2.57487049,2541.4,2541.2,3.92]
[1726856990488,0.39347,2541.3,2541.2,4.31349]
[1726856990684,2.96834049,2541.3,2541.2,4.31349]
[1726856990889,2.57487049,2541.3,2541.2,4.31349]
[1726856991091,2.96834049,2541.4,2541.3,0.39347]
[1726856993184,6.17614049,2541.4,2541.3,0.39347]
[1726856993397,6.17614049,2541.4,2541.0,3.92]
[1726856993398,0.98369,2541.3,2541.0,3.92]
[1726856993599,4.02173536,2541.2,2540.7,3.2078]
[1726856993894,3.85888536,2541.1,2541.0,0.39352]
[1726856996090,0.39352,2541.0,2540.9,4.31352]
[1726856999208,0.39352,2541.0,2540.5,5.115]
[1726856999209,4.91901,2541.0,2540.5,4.131]
[1726856999395,2.96824536,2540.7,2540.6,0.39357]
[1726856999596,0.3936,2540.6,2540.5,0.39359]
[1726856999895,1.7455,2540.6,2540.5,0.39359]
[1726857000289,1.3776,2540.5,2540.4,3.92]
[1726857000597,0.39365,2540.2,2540.1,3.92]
[1726857000796,0.39365,2540.2,2540.1,0.39365]
[1726857001001,2.57586577,2540.2,2540.1,0.39366]
[1726857001301,0.4451,2540.2,2540.1,0.39366]
[1726857001489,0.4451,2540.2,2540.1,4.44782]
[1726857001801,0.4451,2540.2,2540.1,3.46366]
[1726857002008,3.02096577,2540.2,2540.1,0.39366]